bitfinex/quotes_SOLUSD_20250118
["timestamp","ask_amount","ask_price","bid_price","bid_amount"]
[1737237694678,0.74311383,252.39,252.3,31.87211253]
[1737237695177,0.74311383,252.39,252.32,31.87211253]
[1737237695373,0.063,252.4,252.34,31.87211253]
[1737237695616,0.063,252.4,252.36,31.87211253]
[1737237697892,20.0,252.37,252.3,31.87211253]
[1737237698085,20.0,252.37,252.32,31.87211253]
[1737237698393,0.74303446,252.36,252.32,31.87211253]
[1737237699302,0.74303446,252.36,252.3,31.87211253]
[1737237699600,20.0,252.37,252.3,31.87211253]
[1737237699805,0.7430907,252.36,252.3,31.87211253]
[1737237700804,0.063,252.4,252.34,31.87211253]
[1737237701589,0.063,252.4,252.38,31.87211253]
[1737237702689,31.87211253,252.6,252.49,31.87211253]
[1737237703001,0.74263516,252.62,252.52,31.87211253]
[1737237703002,0.74244209,252.59,252.52,31.87211253]
[1737237703383,0.74244441,252.61,252.54,31.87211253]
[1737237703585,0.7423278,252.63,252.56,31.87211253]
[1737237704292,0.74227904,252.65,252.58,31.87211253]
[1737237705105,0.74227904,252.65,252.6,31.87211253]
[1737237705309,0.74216614,252.65,252.6,31.87211253]
[1737237705799,4.103,252.66,252.6,31.87211253]
[1737237706105,0.063,252.66,252.6,31.87211253]
[1737237706288,0.063,252.66,252.62,31.87211253]
[1737237706789,0.063,252.66,252.49,20.0]
[1737237706989,23.776884,252.58,252.51,31.87211253]
[1737237707192,23.776884,252.56,252.49,31.87211253]
[1737237707394,0.74255716,252.55,252.49,31.87211253]
[1737237707584,32.61466667,252.62,252.53,31.87211253]
[1737237707786,0.74255414,252.62,252.55,31.87211253]
[1737237708005,20.0,252.61,252.55,31.87211253]
[1737237708300,24.5192179,252.6,252.51,31.87211253]
[1737237708483,0.7423339,252.6,252.53,31.87211253]
[1737237708682,23.776884,252.59,252.37,5.0]
[1737237708898,31.87211253,252.55,252.46,31.87211253]
[1737237709087,24.51958495,252.54,252.44,31.87211253]
[1737237709282,31.87211253,252.53,252.42,31.87211253]
[1737237709482,0.74276123,252.52,252.42,31.87211253]
[1737237709689,0.74276123,252.52,252.33,31.87211253]
[1737237709690,0.74259251,252.55,252.47,31.87211253]
[1737237709901,0.74259251,252.55,252.45,31.87211253]
[1737237710101,0.74266615,252.55,252.47,31.87211253]
[1737237711796,31.87211253,252.49,252.38,31.87211253]
[1737237711993,31.87211253,252.44,252.33,31.87211253]
[1737237712186,0.74296021,252.43,252.33,31.87211253]
[1737237712386,32.61508269,252.46,252.37,31.87211253]
[1737237712597,0.74297016,252.46,252.37,31.87211253]
[1737237713309,0.74279917,252.47,252.37,31.87211253]
[1737237713487,51.87211253,252.44,252.33,31.87211253]
[1737237713691,31.87211253,252.42,252.31,31.87211253]
[1737237713893,24.51983432,252.41,252.31,31.87211253]
[1737237714094,0.74295032,252.41,252.31,31.87211253]
[1737237714709,0.74295032,252.41,252.33,31.87211253]
[1737237714896,0.7429343,252.42,252.35,31.87211253]
[1737237717905,0.74289543,252.45,252.37,31.87211253]
[1737237718410,55.64899653,252.44,252.33,31.87211253]
[1737237718607,0.74291852,252.43,252.33,31.87211253]
[1737237721113,31.87211253,252.44,252.35,31.87211253]
[1737237721291,3.9611,252.46,252.35,31.87211253]
[1737237721292,31.87211253,252.46,252.35,31.87211253]
[1737237721494,0.74282952,252.45,252.35,31.87211253]
[1737237721810,8.76262685,252.56,252.39,23.776884]
[1737237721999,0.74243915,252.55,252.48,31.87211253]
[1737237722518,8.76232688,252.56,252.48,31.87211253]
[1737237722813,31.87211253,252.62,252.55,31.87211253]
[1737237723013,0.74249228,252.64,252.57,31.87211253]
[1737237723398,8.65054488,252.65,252.57,31.87211253]
[1737237723594,31.87211253,252.63,252.52,31.87211253]
[1737237723901,0.74233588,252.62,252.52,31.87211253]
[1737237724295,39.78041253,252.65,252.56,31.87211253]
[1737237724495,0.74217875,252.64,252.56,31.87211253]
[1737237725091,6.2832,252.65,252.56,31.87211253]
[1737237726709,0.063,252.66,252.62,31.87211253]
[1737237726916,0.063,252.66,252.64,31.87211253]
[1737237728197,35.85211253,252.86,252.68,20.0]
[1737237728500,31.87211253,252.89,252.79,31.87211253]
[1737237728817,32.6136697,252.89,252.79,31.87211253]
[1737237729398,31.87211253,252.89,252.79,31.87211253]
[1737237730112,6.2832,252.9,252.81,31.87211253]
[1737237730416,0.74141909,252.97,252.89,31.87211253]
[1737237730723,33.51441253,253.03,252.93,31.87211253]
[1737237730908,0.74114941,253.02,252.95,31.87211253]
[1737237731417,31.87211253,253.05,252.97,31.87211253]
[1737237732206,0.74104365,253.06,252.97,31.87211253]
[1737237732908,0.063,253.08,253.01,31.87211253]
[1737237733094,0.063,253.08,253.03,31.87211253]
[1737237733290,31.87211253,253.04,252.83,1.55347487]
[1737237733509,31.87211253,253.01,252.92,31.87211253]
[1737237734614,31.87211253,252.95,252.85,31.87211253]
[1737237735027,31.87211253,252.89,252.79,31.87211253]
[1737237735312,31.87211253,252.85,252.75,31.87211253]
[1737237735526,31.87211253,252.85,252.77,31.87211253]
[1737237735701,0.74158689,252.84,252.75,31.87211253]
[1737237736318,31.87211253,252.85,252.75,31.87211253]
[1737237736821,31.87211253,252.85,252.77,31.87211253]
[1737237738319,31.87211253,252.79,252.67,31.87211253]
[1737237738503,0.74184595,252.78,252.59,31.87211253]
[1737237738819,31.87211253,252.76,252.66,31.87211253]
[1737237741625,31.87211253,252.7,252.6,31.87211253]
[1737237742004,31.87211253,252.72,252.62,31.87211253]
[1737237742436,31.87211253,252.74,252.64,31.87211253]
[1737237742724,6.3346,252.75,252.68,31.87211253]
[1737237743411,32.6139687,252.74,252.64,31.87211253]
[1737237743605,31.87211253,252.72,252.62,31.87211253]
[1737237743803,0.74204916,252.71,252.62,31.87211253]
[1737237744500,0.74204916,252.71,252.53,1.56130179]
[1737237744501,0.74204633,252.74,252.68,31.87211253]
[1737237744825,32.6141489,252.83,252.73,31.87211253]
[1737237745035,23.776884,252.8,252.69,31.87211253]
[1737237745205,0.7418999,252.79,252.69,31.87211253]
[1737237745728,0.7418999,252.79,252.71,31.87211253]
[1737237746120,31.87211253,252.83,252.73,31.87211253]
[1737237746416,0.7417032,252.83,252.75,31.87211253]
[1737237747927,31.87211253,252.89,252.78,31.87211253]
[1737237748106,31.87211253,252.87,252.77,31.87211253]
[1737237748313,23.776884,252.84,252.75,31.87211253]
[1737237748509,20.1735,252.91,252.75,20.0]
[1737237748510,31.87211253,252.82,252.75,20.0]
[1737237748826,31.87211253,252.86,252.76,31.87211253]
[1737237749032,0.74166656,252.85,252.76,31.87211253]
[1737237749518,4.69656656,252.85,252.76,31.87211253]
[1737237750928,0.74166656,252.85,252.76,31.87211253]
[1737237751322,4.69666656,252.85,252.76,31.87211253]
[1737237752120,0.74166656,252.85,252.76,31.87211253]
[1737237752538,0.74166656,252.85,252.78,31.87211253]
[1737237752708,31.87211253,252.87,252.78,31.87211253]
[1737237752909,31.87211253,252.8,252.7,31.87211253]
[1737237753115,0.74182384,252.79,252.7,31.87211253]
[1737237754030,4.69772384,252.79,252.7,31.87211253]
[1737237754215,0.74182384,252.79,252.7,31.87211253]
[1737237754727,33.44471253,253.04,252.79,23.776884]
[1737237754930,1.5726,253.04,252.95,31.87211253]
[1737237755124,0.063,253.09,253.01,31.87211253]
[1737237755810,0.063,253.09,253.03,31.87211253]
[1737237756014,31.87211253,253.05,252.94,31.87211253]
[1737237756211,31.87211253,253.03,252.92,31.87211253]
[1737237756527,0.74119416,253.02,252.92,31.87211253]
[1737237756831,31.87211253,253.03,252.94,31.87211253]
[1737237757025,31.87211253,253.05,252.94,31.87211253]
[1737237757212,31.87211253,253.06,252.96,31.87211253]
[1737237757408,31.87211253,253.04,252.94,31.87211253]
[1737237757915,31.87211253,253.06,252.94,31.87211253]
[1737237758116,0.74108092,253.05,252.94,31.87211253]
[1737237758324,31.93511253,253.08,252.98,31.87211253]
[1737237759531,0.063,253.08,252.98,31.87211253]
[1737237759725,0.063,253.08,253.04,31.87211253]
[1737237759916,0.063,253.08,253.0,31.87211253]
[1737237760113,0.80399036,253.08,252.85,31.87211253]
[1737237760324,31.87211253,253.07,252.97,31.87211253]
[1737237760632,0.063,253.08,252.99,31.87211253]
[1737237761127,0.063,253.08,253.01,31.87211253]
[1737237761332,31.87211253,253.06,252.96,31.87211253]
[1737237761514,31.87211253,253.0,252.9,31.87211253]
[1737237761832,31.87211253,252.96,252.86,31.87211253]
[1737237762029,0.74138582,252.95,252.86,31.87211253]
[1737237762815,0.74138582,252.95,252.82,31.87211253]
[1737237762816,31.87211253,252.91,252.82,31.87211253]
[1737237763317,1.5726,252.96,252.89,31.87211253]
[1737237767438,2.31389471,252.96,252.89,31.87211253]
[1737237767819,1.5726,252.96,252.89,31.87211253]
[1737237769528,56.39029904,252.95,252.85,31.87211253]
[1737237770432,3.9535,252.94,252.85,31.87211253]
[1737237770737,0.74143585,252.93,252.85,31.87211253]
[1737237771240,31.87211253,252.89,252.79,31.87211253]
[1737237771438,0.74157014,252.88,252.79,31.87211253]
[1737237772443,5.0,252.97,252.76,0.03]
[1737237772444,31.87211253,252.91,252.83,31.87211253]
[1737237772626,38.38471253,253.0,252.89,31.87211253]
[1737237772823,6.5126,253.0,252.93,31.87211253]
[1737237774922,6.5126,253.0,252.95,31.87211253]
[1737237775640,31.93511253,253.09,252.99,31.87211253]
[1737237775941,31.93511253,253.09,252.85,61.17211253]
[1737237775942,0.063,253.09,253.05,31.87211253]
[1737237776450,0.063,253.09,253.07,31.87211253]
[1737237777019,0.063,253.09,253.03,31.87211253]
[1737237777642,0.063,253.09,253.07,31.87211253]
[1737237778170,0.063,253.09,253.05,31.87211253]
[1737237780344,31.93511253,253.08,252.98,31.87211253]
[1737237780646,31.93511253,253.08,253.02,31.87211253]
[1737237780647,0.063,253.08,253.02,31.87211253]
[1737237780844,0.063,253.08,253.04,31.87211253]
[1737237781339,0.063,253.08,253.06,31.87211253]
[1737237781944,0.063,253.08,253.0,31.87211253]
[1737237782147,4.75529199,253.08,252.98,31.87211253]
[1737237782319,0.80399199,253.08,253.0,31.87211253]
[1737237782525,55.64899653,253.07,252.96,31.87211253]
[1737237782841,23.776884,253.05,252.96,31.87211253]
[1737237783029,0.74114042,253.04,252.96,31.87211253]
[1737237783239,31.87211253,253.03,252.94,31.87211253]
[1737237783428,31.87211253,253.03,252.94,19.51766961]
[1737237783429,0.7411468,253.02,252.94,19.51766961]
[1737237785245,19.51766961,253.01,252.92,19.51766961]
[1737237785431,0.74125284,253.0,252.91,31.72182791]
[1737237788848,0.74125284,253.0,252.93,31.72182791]
[1737237789147,0.74122272,253.02,252.93,31.72182791]
[1737237790028,4.69342272,253.02,252.93,31.72182791]
[1737237790844,23.776884,252.94,252.83,31.72182791]
[1737237791048,31.72182791,252.92,252.82,31.72182791]
[1737237791239,0.74145905,252.91,252.82,31.72182791]
[1737237792133,0.74145905,252.91,252.84,31.72182791]
[1737237792330,55.49871191,252.92,252.82,31.72182791]
[1737237792529,55.49871191,252.92,252.76,0.03]
[1737237792530,23.776884,252.89,252.8,31.72182791]
[1737237792748,55.49871191,252.87,252.77,31.72182791]
[1737237793051,31.72182791,252.83,252.76,0.03]
[1737237793354,0.74179307,252.82,252.76,0.03]
[1737237794428,55.49871191,252.81,252.76,0.03]
[1737237794626,0.74187825,252.8,252.76,0.03]
[1737237795346,0.74174727,252.8,252.76,0.03]
[1737237795536,6.2436,252.81,252.76,0.03]
[1737237795740,6.2436,252.81,252.77,31.72182791]
[1737237796143,0.7416596,252.86,252.79,31.72182791]
[1737237796948,6.98523113,252.89,252.81,31.72182791]
[1737237797149,6.2436,252.89,252.83,31.72182791]
[1737237798028,6.98506415,252.89,252.81,31.72182791]
[1737237798235,6.2436,252.89,252.83,31.72182791]
[1737237798434,6.98505376,252.89,252.83,31.72182791]
[1737237799434,0.74152249,253.04,252.91,5.0]
[1737237799639,0.063,253.09,253.06,20.0]
[1737237799954,0.063,253.09,253.07,31.72182791]
[1737237800144,0.063,253.08,253.07,31.72182791]
[1737237800845,0.063,253.08,253.05,31.72182791]
[1737237801237,0.063,253.08,253.03,31.72182791]
[1737237801428,0.063,253.08,252.98,31.72182791]
[1737237801429,55.56171191,253.08,252.98,31.72182791]
[1737237801632,0.74108827,253.07,253.0,31.72182791]
[1737237801833,0.063,253.08,252.85,61.02182791]
[1737237801834,0.063,253.08,253.03,31.72182791]
[1737237802858,0.063,253.08,252.87,45.111119]
[1737237802859,0.063,253.08,253.07,31.72182791]
[1737237804346,0.063,253.08,253.02,31.72182791]
[1737237804545,0.063,253.08,253.06,31.72182791]
[1737237809363,0.063,253.08,253.07,19.49587515]
[1737237811762,0.063,253.08,253.07,43.27275915]
[1737237812077,0.063,253.08,253.07,19.49587515]
[1737237812745,0.063,253.08,253.07,20.0]
[1737237812944,0.063,253.08,253.07,39.49587515]
[1737237813145,0.063,253.08,253.0,1.580332]
[1737237813364,0.063,253.08,253.03,19.49587515]
[1737237813543,0.063,253.08,253.01,19.49587515]
[1737237813862,19.55887515,253.08,252.99,19.49587515]
[1737237814045,0.74094549,253.07,252.99,19.49587515]
[1737237814247,19.49587515,253.06,252.97,19.49587515]
[1737237814847,19.49587515,253.06,252.86,15.810418]
[1737237814848,0.063,253.08,253.01,19.49587515]
[1737237815366,0.063,253.08,253.04,19.49587515]
[1737237815553,0.063,253.08,253.02,19.49587515]
[1737237817170,0.063,253.08,253.0,19.49587515]
[1737237817356,0.063,253.08,252.98,19.49587515]
[1737237817357,19.55887515,253.08,252.98,19.49587515]
[1737237817556,19.49587515,253.06,252.98,19.49587515]
[1737237817868,0.80399654,253.08,253.0,19.49587515]
[1737237818059,0.80399654,253.08,252.98,19.49587515]
[1737237818060,0.74099654,253.06,252.98,19.49587515]
[1737237818455,0.74101109,253.07,252.98,19.49587515]
[1737237819454,0.063,253.08,253.0,19.49587515]
[1737237819770,0.063,253.08,253.03,19.49587515]
[1737237820475,0.063,253.08,253.01,19.49587515]
[1737237820672,0.063,253.08,253.05,19.49587515]
[1737237821056,0.063,253.08,253.07,19.49587515]
[1737237822273,0.063,253.08,253.07,43.27275915]
[1737237823463,0.063,253.09,253.08,28.776884]
[1737237823666,0.063,253.17,253.11,20.0]
[1737237823865,0.063,253.17,253.16,19.49587515]
[1737237824264,0.063,253.17,253.14,19.49587515]
[1737237824661,0.063,253.17,253.16,19.49587515]
[1737237825476,0.063,253.17,253.14,19.49587515]
[1737237825780,0.063,253.17,253.16,19.49587515]
[1737237825972,0.063,253.17,253.16,43.27275915]
[1737237826460,0.063,253.17,253.16,19.49587515]
[1737237826866,0.063,253.19,253.17,23.776884]
[1737237827062,0.063,253.19,253.18,39.49587515]
[1737237827255,0.063,253.19,253.18,43.27275915]
[1737237828079,0.063,253.19,253.18,19.49587515]
[1737237828861,0.063,253.19,253.18,43.27275915]
[1737237829759,0.063,253.26,253.19,23.776884]
[1737237829979,0.063,253.26,253.24,19.49587515]
[1737237831079,5.0,253.18,253.17,5.0]
[1737237831282,5.0,253.13,253.08,19.49587515]
[1737237831583,5.0,253.06,253.04,19.49587515]
[1737237831785,5.0,253.06,253.02,19.49587515]
[1737237832175,5.0,253.08,253.04,19.49587515]
[1737237832762,5.0,253.13,253.06,19.49587515]
[1737237832967,5.0,253.13,253.08,19.49587515]
[1737237833191,5.0,253.11,253.08,19.49587515]
[1737237833486,5.0,253.09,253.06,19.49587515]
[1737237833778,5.0,253.11,253.06,19.49587515]
[1737237834180,5.0,253.08,253.06,19.49587515]
[1737237834493,5.0,252.99,252.95,19.49587515]
[1737237834995,5.0,252.93,252.89,19.49587515]
[1737237835384,5.0,252.93,252.88,31.73088668]
[1737237835589,5.0,252.97,252.92,31.73088668]
[1737237835787,5.0,252.95,252.92,31.73088668]
[1737237836278,5.0,252.99,252.94,31.73088668]
[1737237836479,6.2185,253.0,252.94,31.73088668]
[1737237836778,1.5408,253.02,252.98,31.73088668]
[1737237836981,6.5408,253.02,252.96,31.73088668]
[1737237838584,9.12,253.12,253.01,51.73088668]
[1737237838585,1.5408,253.11,253.01,51.73088668]
[1737237838895,6.2185,253.14,253.08,31.73088668]
[1737237839102,5.0,253.11,253.08,31.73088668]
[1737237839295,5.0,253.09,253.08,31.73088668]
[1737237839595,5.0,253.05,253.02,31.73088668]
[1737237840297,5.0,253.04,253.02,31.73088668]
[1737237840500,5.0,253.01,252.98,31.73088668]
[1737237840883,5.0,252.98,252.94,31.73088668]
[1737237841079,5.0,253.01,252.94,31.73088668]
[1737237841293,5.0,253.03,252.96,31.73088668]
[1737237841500,5.0,253.05,252.96,31.73088668]
[1737237842699,5.0,253.05,252.98,31.73088668]
[1737237843606,5.0,253.24,253.08,23.776884]
[1737237843785,5.0,253.2,253.18,31.73088668]
[1737237843990,5.0,253.2,253.16,31.73088668]
[1737237844400,5.0,253.17,253.14,31.73088668]
[1737237844601,31.73088668,253.23,253.14,31.73088668]
[1737237844602,5.0,253.18,253.14,31.73088668]
[1737237844788,5.0,253.22,253.14,31.73088668]
[1737237845104,5.0,253.18,253.14,31.73088668]
[1737237845300,5.0,253.2,253.14,31.73088668]
[1737237845602,5.0,253.18,253.14,31.73088668]
[1737237846107,5.0,253.15,253.12,31.73088668]
[1737237846311,5.0,253.13,253.08,31.73088668]
[1737237846488,5.0,253.11,253.08,31.73088668]
[1737237846683,5.0,253.18,253.1,31.73088668]
[1737237846898,5.0,253.22,253.17,31.73088668]
[1737237847112,5.0,253.22,253.04,23.776884]
[1737237847113,5.0,253.22,253.2,31.73088668]
[1737237847289,5.0,253.24,253.2,31.73088668]
[1737237847494,0.063,253.26,253.23,31.73088668]
[1737237847702,5.063,253.26,253.11,61.03088668]
[1737237847909,5.0,253.23,253.22,31.73088668]
[1737237848625,0.80339959,253.26,253.22,31.73088668]
[1737237848917,0.80339959,253.26,253.11,61.03088668]
[1737237848918,5.0,253.41,253.34,20.0]
[1737237849220,5.063,253.52,253.42,20.0]
[1737237849521,5.063,253.52,253.42,75.50777068]
[1737237849721,5.0,253.5,253.42,51.73088668]
[1737237849923,5.063,253.52,253.42,51.73088668]
[1737237850118,5.0,253.47,253.42,51.73088668]
[1737237850420,5.0,253.4,253.39,31.73088668]
[1737237850625,5.0,253.37,253.36,31.73088668]
[1737237851130,5.0,253.35,253.34,31.73088668]
[1737237851422,5.0,253.39,253.34,31.73088668]
[1737237851626,5.0,253.39,253.38,31.73088668]
[1737237853622,5.0,253.35,253.34,31.73088668]
[1737237854432,5.0,253.29,253.28,31.73088668]
[1737237854626,5.0,253.34,253.28,31.73088668]
[1737237854825,0.063,253.43,253.24,31.73088668]
[1737237854826,5.0,253.38,253.33,31.73088668]
[1737237855031,5.0,253.38,253.37,31.73088668]
[1737237855337,5.0,253.36,253.35,31.73088668]
[1737237855637,5.0,253.36,253.32,31.73088668]
[1737237855832,5.0,253.35,253.34,31.73088668]
[1737237856819,5.0,253.33,253.32,31.73088668]
[1737237857038,31.73088668,253.42,253.32,31.73088668]
[1737237857039,5.0,253.36,253.32,31.73088668]
[1737237857239,5.0,253.36,253.35,31.73088668]
[1737237857444,5.0,253.41,253.35,31.73088668]
[1737237857626,5.0,253.41,253.24,31.73088668]
[1737237857627,5.0,253.41,253.38,31.73088668]
[1737237857829,0.063,253.43,253.4,31.73088668]
[1737237857830,5.063,253.43,253.4,31.73088668]
[1737237858135,0.063,253.43,253.42,31.73088668]
[1737237860039,5.0,253.4,253.38,31.73088668]
[1737237860225,0.063,253.43,253.4,31.73088668]
[1737237860424,0.063,253.43,253.42,31.73088668]
[1737237861523,0.063,253.43,253.42,55.50777068]
[1737237862148,0.063,253.52,253.46,20.0]
[1737237862440,0.063,253.52,253.51,31.73088668]
[1737237863542,5.0,253.51,253.5,31.73088668]
[1737237863731,0.063,253.52,253.5,31.73088668]
[1737237863732,0.063,253.52,253.5,63.46177336]
[1737237863934,0.063,253.52,253.5,31.73088668]
[1737237864146,5.063,253.52,253.5,31.73088668]
[1737237865221,5.0,253.47,253.46,31.73088668]
[1737237865839,0.063,253.52,253.37,31.73088668]
[1737237865840,5.0,253.45,253.44,31.73088668]
[1737237866847,5.0,253.41,253.4,31.73088668]
[1737237867039,5.0,253.33,253.32,31.73088668]
[1737237869028,5.0,253.33,253.29,31.73088668]
[1737237869229,5.0,253.3,253.29,31.73088668]
[1737237869629,5.0,253.3,253.26,0.03]
[1737237869944,5.0,253.27,253.26,0.03]
[1737237873546,5.0,253.29,253.26,31.76088668]
[1737237873752,5.0,253.29,253.28,31.73088668]
[1737237873936,5.0,253.27,253.26,0.03]
[1737237878351,36.73088668,253.27,253.26,0.03]
[1737237879470,37.47134745,253.27,253.26,0.03]
[1737237879755,61.24823145,253.27,253.26,0.03]
[1737237881135,5.0,253.27,253.26,0.03]
[1737237881553,5.0,253.27,253.12,18.65298148]
[1737237881554,5.0,253.15,253.12,31.73088668]
[1737237881864,5.0,253.07,253.06,31.73088668]
[1737237882855,5.0,253.15,253.1,20.0]
[1737237883157,5.0,253.19,253.14,31.73088668]
[1737237883346,5.0,253.21,253.18,31.73088668]
[1737237883544,5.0,253.23,253.2,31.73088668]
[1737237883751,5.0,253.21,253.2,31.73088668]
[1737237884658,5.0,253.23,253.2,31.73088668]
[1737237884961,5.0,253.23,253.22,31.73088668]
[1737237885258,5.0,253.21,253.2,31.73088668]
[1737237887240,5.0,253.17,253.16,31.73088668]
[1737237887460,5.0,253.15,253.14,31.73088668]
[1737237890861,5.0,253.16,253.14,31.73088668]
[1737237891370,5.0,253.17,253.14,31.73088668]
[1737237891542,5.0,253.17,253.16,31.73088668]
[1737237891740,5.0,253.21,253.16,31.73088668]
[1737237892052,5.0,253.21,253.19,31.73088668]
[1737237894166,5.0,253.32,253.2,55.50777068]
[1737237894477,5.0,253.32,253.3,31.73088668]
[1737237895943,5.0,253.27,253.26,31.73088668]
[1737237896160,5.0,253.27,253.24,31.73088668]
[1737237896367,5.0,253.23,253.22,31.73088668]
[1737237897456,5.0,253.23,253.22,19.47281914]
[1737237898269,5.0,253.24,253.22,43.24970314]
[1737237898655,5.0,253.27,253.22,19.47281914]
[1737237898853,5.0,253.27,253.26,19.47281914]
[1737237899254,0.74022023,253.34,253.24,19.47281914]
[1737237899255,5.0,253.25,253.24,19.47281914]
[1737237900561,5.0,253.27,253.24,19.47281914]
[1737237900765,5.0,253.25,253.21,19.47281914]
[1737237900969,5.0,253.27,253.24,19.47281914]
[1737237901153,5.0,253.27,253.26,19.47281914]
[1737237901666,5.0,253.3,253.26,19.47281914]
[1737237901868,5.0,253.35,253.31,43.776884]
[1737237902053,5.0,253.4,253.34,19.47281914]
[1737237902371,5.0,253.33,253.28,20.0]
[1737237902764,5.0,253.3,253.24,19.47281914]
[1737237902973,5.0,253.28,253.27,20.0]
[1737237903158,5.0,253.28,253.24,19.47281914]
[1737237903358,5.0,253.32,253.27,43.24970314]
[1737237903663,5.0,253.34,253.31,19.47281914]
[1737237903863,5.0,253.4,253.34,23.776884]
[1737237904074,5.0,253.4,253.24,48.77281914]
[1737237904075,5.0,253.4,253.37,19.47281914]
[1737237904273,5.0,253.4,253.39,19.47281914]
[1737237906375,5.0,253.38,253.37,19.47281914]
[1737237906672,5.0,253.44,253.38,23.776884]
[1737237906875,5.0,253.46,253.44,19.47281914]
[1737237907262,5.0,253.43,253.42,19.47281914]
[1737237907473,5.0,253.45,253.42,19.47281914]
[1737237907654,5.0,253.45,253.44,19.47281914]
[1737237907859,5.0,253.5,253.45,23.776884]
[1737237908054,5.063,253.52,253.49,19.47281914]
[1737237908373,5.063,253.52,253.51,19.47281914]
[1737237908968,0.063,253.52,253.51,43.24970314]
[1737237910374,5.0,253.49,253.48,19.47281914]
[1737237910680,5.0,253.37,253.34,19.47281914]
[1737237910861,5.0,253.37,253.24,25.49720298]
[1737237910862,5.0,253.29,253.28,19.47281914]
[1737237911062,5.0,253.27,253.26,19.47281914]
[1737237911274,5.0,253.32,253.27,20.0]
[1737237911876,5.0,253.3,253.17,23.776884]
[1737237912084,5.0,253.3,253.29,31.62013932]
[1737237913273,5.0,253.32,253.29,31.62013932]
[1737237913585,5.0,253.32,253.31,31.62013932]
[1737237913778,5.0,253.34,253.31,31.62013932]
[1737237914083,5.0,253.34,253.33,31.62013932]
[1737237915183,5.0,253.3,253.29,31.62013932]
[1737237915365,5.0,253.27,253.26,31.62013932]
[1737237915768,5.0,253.29,253.26,31.62013932]
[1737237915972,5.0,253.29,253.28,31.62013932]
[1737237918782,5.0,253.36,253.29,23.776884]
[1737237918971,5.0,253.38,253.35,31.62013932]
[1737237919169,5.0,253.38,253.37,31.62013932]
[1737237919584,11.3316,253.4,253.37,31.62013932]
[1737237919767,5.0,253.38,253.37,31.62013932]
[1737237919961,5.0,253.4,253.37,31.62013932]
[1737237920173,5.0,253.4,253.39,31.62013932]
[1737237921783,5.0,253.44,253.39,31.62013932]
[1737237921986,5.0,253.44,253.43,31.62013932]
[1737237922868,5.0,253.46,253.43,31.62013932]
[1737237923070,5.0,253.46,253.45,31.62013932]
[1737237923483,5.0,253.48,253.46,23.776884]
[1737237923792,0.063,253.52,253.48,23.776884]
[1737237923980,0.063,253.52,253.51,31.62013932]
[1737237924503,0.063,253.52,253.51,55.39702332]
[1737237924780,0.063,253.52,253.51,31.62013932]
[1737237924990,0.063,253.52,253.51,55.39702332]
[1737237925788,5.063,253.52,253.48,31.62013932]
[1737237925992,5.0,253.45,253.42,31.62013932]
[1737237926288,5.0,253.45,253.44,31.62013932]
[1737237927088,5.0,253.41,253.37,31.62013932]
[1737237927386,5.0,253.41,253.37,20.0]
[1737237928180,5.0,253.39,253.38,31.62013932]
[1737237929589,5.0,253.41,253.38,31.62013932]
[1737237929790,5.0,253.41,253.4,31.62013932]
[1737237930093,5.0,253.47,253.41,23.776884]
[1737237930280,5.0,253.49,253.47,31.62013932]
[1737237931094,5.0,253.51,253.47,31.62013932]
[1737237931296,5.0,253.51,253.5,31.62013932]
[1737237931699,0.063,253.52,253.5,31.62013932]
[1737237932279,0.063,253.52,253.51,23.776884]
[1737237934506,5.063,253.52,253.51,23.776884]
[1737237935113,5.063,253.52,253.5,31.62013932]
[1737237935293,0.063,253.52,253.5,31.62013932]
[1737237935493,0.063,253.52,253.51,23.776884]
[1737237937389,0.063,253.52,253.51,43.19179213]
[1737237938690,5.0,253.64,253.55,20.0]
[1737237938883,5.0,253.64,253.61,19.41490813]
[1737237939090,5.0,253.62,253.61,19.41490813]